fUSD/lending_fUSD_20240629
["ID","MTS","AMOUNT","RATE_DAILY","PERIOD"]
[330679052,1719705042221,-194.54813413,0.00013698,3]
[330679053,1719705042232,-612.15,0.00013698,3]
[330679054,1719705042242,-500.0,0.00013698,3]
[330679055,1719705042251,-2318.78,0.00013698,3]
[330679056,1719705042261,-739.97,0.00013698,3]
[330679057,1719705042270,-500.0,0.00013698,3]
[330679058,1719705042279,-1570.07,0.00013698,3]
[330679059,1719705042289,-1174.41,0.00013698,3]
[330679060,1719705042298,-540.97,0.00013698,3]
[330679061,1719705042308,-500.0,0.00013698,3]
[330679062,1719705042317,-575.34,0.00013698,3]
[330679063,1719705042326,-647.36,0.00013698,3]
[330679064,1719705042335,-1038.18,0.00013698,3]
[330679065,1719705042345,-513.14,0.00013698,3]
[330679066,1719705042354,-687.86,0.00013698,3]
[330679067,1719705042363,-640.12,0.00013698,3]
[330679068,1719705042372,-2563.17,0.00013698,3]
[330679069,1719705042381,-500.0,0.00013698,3]
[330679070,1719705042391,-500.0,0.00013698,3]
[330679071,1719705042400,-763.24,0.00013698,3]
[330679072,1719705042409,-500.0,0.00013698,3]
[330679073,1719705042418,-500.0,0.00013698,3]
[330679074,1719705042427,-2302.49,0.00013698,3]
[330679075,1719705042437,-1313.16,0.00013698,3]
[330679076,1719705042447,-756.84,0.00013698,3]
[330679077,1719705042456,-1816.45,0.00013698,3]
[330679078,1719705042465,-500.0,0.00013698,3]
[330679079,1719705042474,-500.0,0.00013698,3]
[330679080,1719705042483,-500.0,0.00013698,3]
[330679081,1719705042498,-500.0,0.00013698,3]
[330679082,1719705042508,-500.0,0.00013698,3]
[330679083,1719705042518,-1354.87,0.00013698,3]
[330679084,1719705042528,-339.39895271,0.00013698,3]
[330679085,1719705042538,-500.0,0.00013698,3]
[330679086,1719705042548,-2576.61,0.00013698,3]
[330679087,1719705042557,-500.0,0.00013698,3]
[330679088,1719705042567,-567.29,0.00013698,3]
[330679089,1719705042577,-500.0,0.00013698,3]
[330679090,1719705042587,-500.0,0.00013698,3]
[330679091,1719705042597,-871.13,0.00013698,3]
[330679092,1719705042607,-500.0,0.00013698,3]
[330679093,1719705042616,-500.0,0.00013698,3]
[330679094,1719705042626,-500.0,0.00013698,3]
[330679095,1719705042636,-500.0,0.00013698,3]
[330679096,1719705042646,-500.0,0.00013698,3]
[330679112,1719705042656,-670.44,0.00013698,3]
[330679115,1719705042949,-19880.68,0.00013698,3]
[330679117,1719705042958,-551.59,0.00013698,3]
[330679119,1719705042967,-627.69,0.00013698,3]
[330679121,1719705042978,-500.0,0.00013698,3]
[330679124,1719705042990,-869.74,0.00013698,3]
[330679126,1719705043001,-1136.89,0.00013698,3]
[330679128,1719705043012,-1233.9,0.00013698,3]
[330679130,1719705043022,-500.0,0.00013698,3]
[330679132,1719705043034,-2994.02,0.00013698,3]
[330679134,1719705043044,-812.56,0.00013698,3]
[330679135,1719705043058,-1723.47,0.00013698,3]
[330679136,1719705043067,-500.0,0.00013698,3]
[330679137,1719705043076,-500.0,0.00013698,3]
[330679138,1719705043085,-500.0,0.00013698,3]
[330679139,1719705043095,-500.0,0.00013698,3]
[330679140,1719705043104,-1517.52,0.00013698,3]
[330679141,1719705043113,-500.0,0.00013698,3]
[330679142,1719705043122,-527.52,0.00013698,3]
[330679143,1719705043132,-851.46,0.00013698,3]
[330679144,1719705043141,-500.0,0.00013698,3]
[330679145,1719705043152,-500.0,0.00013698,3]
[330679146,1719705043162,-1177.2,0.00013698,3]
[330679147,1719705043171,-500.0,0.00013698,3]
[330679148,1719705043181,-500.0,0.00013698,3]
[330679149,1719705043191,-500.0,0.00013698,3]
[330679150,1719705043200,-500.0,0.00013698,3]
[330679151,1719705043209,-500.0,0.00013698,3]
[330679152,1719705043218,-500.0,0.00013698,3]
[330679153,1719705043228,-500.0,0.00013698,3]
[330679154,1719705043238,-2036.2,0.00013698,3]
[330679155,1719705043247,-500.0,0.00013698,3]
[330679156,1719705043256,-514.46,0.00013698,3]
[330679157,1719705043269,-500.0,0.00013698,3]
[330679158,1719705043279,-500.0,0.00013698,3]
[330679159,1719705043289,-1839.78,0.00013698,3]
[330679160,1719705043298,-3110.13,0.00013698,3]
[330679161,1719705043308,-500.0,0.00013698,3]
[330679162,1719705043318,-637.18,0.00013698,3]
[330679163,1719705043330,-500.0,0.00013698,3]
[330679164,1719705043339,-500.0,0.00013698,3]
[330679165,1719705043348,-1261.81,0.00013698,3]
[330679166,1719705043357,-656.3,0.00013698,3]
[330679167,1719705043367,-500.0,0.00013698,3]
[330679168,1719705043377,-500.0,0.00013698,3]
[330679169,1719705043387,-500.0,0.00013698,3]
[330679170,1719705043396,-500.0,0.00013698,3]
[330679171,1719705043406,-505.28,0.00013698,3]
[330679172,1719705043416,-500.0,0.00013698,3]
[330679173,1719705043427,-500.0,0.00013698,3]
[330679174,1719705043437,-974.45,0.00013698,3]
[330679175,1719705043448,-500.0,0.00013698,3]
[330679176,1719705043459,-874.91,0.00013698,3]
[330679177,1719705043470,-500.0,0.00013698,3]
[330679178,1719705043479,-839.67,0.00013698,3]
[330679179,1719705043489,-402.70624823,0.00013698,3]
[330679180,1719705043498,-970.08,0.00013698,3]
[330679181,1719705043507,-540.24,0.00013698,3]
[330679182,1719705043517,-555.58,0.00013698,3]
[330679183,1719705043526,-777.13,0.00013698,3]
[330679184,1719705043535,-500.0,0.00013698,3]
[330679185,1719705043545,-945.58,0.00013698,3]
[330679186,1719705043554,-586.87781105,0.00013698,3]
[330679187,1719705043563,-500.0,0.00013698,3]
[330679188,1719705043572,-500.0,0.00013698,3]
[330679189,1719705043581,-934.36,0.00013698,3]
[330679190,1719705043591,-2821.42,0.00013698,3]
[330679191,1719705043600,-500.0,0.00013698,3]
[330679192,1719705043609,-500.0,0.00013698,3]
[330679193,1719705043619,-500.0,0.00013698,3]
[330679194,1719705043628,-625.84,0.00013698,3]
[330679195,1719705043637,-500.0,0.00013698,3]
[330679196,1719705043647,-500.0,0.00013698,3]
[330679197,1719705043656,-744.12,0.00013698,3]
[330679198,1719705043666,-645.82,0.00013698,3]
[330679199,1719705043675,-2357.07,0.00013698,3]
[330679200,1719705043684,-500.0,0.00013698,3]
[330679201,1719705043694,-500.0,0.00013698,3]
[330679202,1719705043704,-2620.48,0.00013698,3]
[330679203,1719705043713,-500.0,0.00013698,3]
[330679204,1719705043724,-3019.65,0.00013698,3]
[330679205,1719705043734,-731.72,0.00013698,3]
[330679206,1719705043744,-952.46,0.00013698,3]
[330679207,1719705043753,-782.53,0.00013698,3]
[330679208,1719705043763,-587.14,0.00013698,3]
[330679209,1719705043773,-2448.07,0.00013698,3]
[330679210,1719705043782,-2696.25,0.00013698,3]
[330679211,1719705043792,-2521.32,0.00013698,3]
[330679212,1719705043802,-531.96232944,0.00013698,3]
[330679213,1719705043811,-500.0,0.00013698,3]
[330679214,1719705043820,-1043.0,0.00013698,3]
[330679215,1719705043829,-537.74,0.00013698,3]
[330679216,1719705043839,-500.0,0.00013698,3]
[330679217,1719705043848,-787.67,0.00013698,3]
[330679218,1719705043857,-1338.34,0.00013698,3]
[330679219,1719705043867,-163.8,0.00013699,2]
[330679220,1719705043876,-499.99,0.00013699,2]
[330679221,1719705043885,-199.09,0.00013699,2]
[330679222,1719705043894,-220.24,0.00013699,3]
[330679223,1719705043904,-1200.0,0.000137,5]
[330679224,1719705043913,-185.14446002,0.00013708,2]
[330679225,1719705043922,-174.85556549,0.00013727,2]
[330679226,1719705043932,-1038.61637394,0.00013746,2]
[330679227,1719705043952,-170.45168611,0.00013765,2]
[330679228,1719705043963,-599.55206968,0.0001379,2]
[330679229,1719705043974,-212.32818812,0.00013798,2]
[330679230,1719705043984,-362.61548044,0.00013799,2]
[330679231,1719705043994,-1559.04445,0.000138,2]
[330679232,1719705044006,-1600.0,0.000138,5]
[330679233,1719705044016,-722.35029396,0.00013801,2]
[330679234,1719705044026,-655.0,0.00013808,2]
[330679235,1719705044036,-620.81,0.00013808,3]
[330679236,1719705044046,-1583.79,0.00013808,3]
[330679237,1719705044062,-1883.06,0.00013808,3]
[330679238,1719705044072,-2952.51,0.00013808,3]
[330679239,1719705044081,-1332.5,0.00013808,3]
[330679240,1719705044091,-1719.87,0.00013808,3]
[330679241,1719705044103,-1147.05,0.00013808,3]
[330679242,1719705044112,-1606.94,0.00013808,3]
[330679243,1719705044122,-1175.79,0.00013808,3]
[330679244,1719705044134,-1998.03,0.00013808,3]
[330679245,1719705044144,-3718.71,0.00013808,3]
[330679246,1719705044154,-4061.46,0.00013808,3]
[330679247,1719705044163,-1203.67,0.00013808,3]
[330679248,1719705044173,-500.0,0.00013808,3]
[330679249,1719705044183,-1660.66,0.00013808,3]
[330679250,1719705044193,-500.0,0.00013808,3]
[330679251,1719705044203,-500.0,0.00013808,3]
[330679252,1719705044212,-500.0,0.00013808,3]
[330679253,1719705044222,-500.0,0.00013808,3]
[330679254,1719705044232,-500.0,0.00013808,3]
[330679255,1719705044242,-501.79,0.00013808,3]
[330679256,1719705044252,-5282.73,0.00013808,3]
[330679257,1719705044261,-569.21,0.00013808,3]
[330679258,1719705044271,-500.0,0.00013808,3]
[330679259,1719705044281,-500.0,0.00013808,3]
[330679260,1719705044291,-500.0,0.00013808,3]
[330679261,1719705044301,-500.0,0.00013808,3]
[330679262,1719705044311,-500.0,0.00013808,3]
[330679263,1719705044320,-500.0,0.00013808,3]
[330679264,1719705044331,-593.75,0.00013808,3]
[330679265,1719705044340,-500.0,0.00013808,3]
[330679266,1719705044350,-500.0,0.00013808,3]
[330679267,1719705044359,-770.98,0.00013808,3]
[330679268,1719705044369,-500.0,0.00013808,3]
[330679269,1719705044379,-712.62,0.00013808,3]
[330679270,1719705044389,-500.0,0.00013808,3]
[330679271,1719705044399,-500.0,0.00013808,3]
[330679272,1719705044408,-500.0,0.00013808,3]
[330679273,1719705044417,-1536.32,0.00013808,3]
[330679274,1719705044427,-500.0,0.00013808,3]
[330679275,1719705044436,-500.0,0.00013808,3]
[330679276,1719705044446,-500.0,0.00013808,3]
[330679277,1719705044456,-500.0,0.00013808,3]
[330679278,1719705044466,-500.0,0.00013808,3]
[330679279,1719705044475,-500.0,0.00013808,3]
[330679280,1719705044485,-500.0,0.00013808,3]
[330679281,1719705044494,-500.0,0.00013808,3]
[330679282,1719705044504,-500.0,0.00013808,3]
[330679283,1719705044514,-500.0,0.00013808,3]
[330679284,1719705044523,-500.0,0.00013808,3]
[330679285,1719705044533,-1344.53,0.00013808,3]
[330679286,1719705044542,-500.0,0.00013808,3]
[330679287,1719705044552,-500.0,0.00013808,3]
[330679288,1719705044561,-500.0,0.00013808,3]
[330679289,1719705044571,-500.0,0.00013808,3]
[330679290,1719705044580,-500.0,0.00013808,3]
[330679291,1719705044590,-500.0,0.00013808,3]
[330679292,1719705044599,-500.0,0.00013808,3]
[330679293,1719705044609,-500.0,0.00013808,3]
[330679294,1719705044619,-500.0,0.00013808,3]
[330679295,1719705044628,-287.25308919,0.00013808,3]
[330679296,1719705044637,-500.0,0.00013808,3]
[330679297,1719705044647,-500.0,0.00013808,3]
[330679298,1719705044657,-521.06,0.00013808,3]
[330679299,1719705044667,-500.0,0.00013808,3]
[330679300,1719705044677,-500.0,0.00013808,3]
[330679301,1719705044687,-500.0,0.00013808,3]
[330679302,1719705044697,-500.0,0.00013808,3]
[330679303,1719705044707,-500.0,0.00013808,2]
[330679304,1719705044716,-500.0,0.00013808,3]
[330679305,1719705044726,-535.03,0.00013808,3]
[330679306,1719705044738,-500.0,0.00013808,3]
[330679307,1719705044750,-500.0,0.00013808,3]
[330679308,1719705044760,-592.23,0.00013808,3]
[330679309,1719705044770,-500.0,0.00013808,3]
[330679310,1719705044779,-500.0,0.00013808,3]
[330679311,1719705044789,-500.0,0.00013808,3]
[330679312,1719705044803,-500.0,0.00013808,3]
[330679313,1719705044813,-575.73,0.00013808,3]
[330679314,1719705044823,-500.0,0.00013808,3]
[330679315,1719705044834,-1262.62,0.00013808,3]
[330679316,1719705044844,-500.0,0.00013808,3]
[330679317,1719705044854,-500.0,0.00013808,3]
[330679318,1719705044864,-500.0,0.00013808,3]
[330679319,1719705044874,-500.0,0.00013808,3]
[330679320,1719705044884,-500.0,0.00013808,3]
[330679321,1719705044894,-500.0,0.00013808,3]
[330679322,1719705044904,-500.0,0.00013808,3]
[330679323,1719705044914,-500.0,0.00013808,3]
[330679324,1719705044924,-500.0,0.00013808,3]
[330679325,1719705044936,-500.0,0.00013808,3]
[330679326,1719705044946,-500.0,0.00013808,3]
[330679327,1719705044956,-500.0,0.00013808,3]
[330679328,1719705044966,-1033.22,0.00013808,3]
[330679329,1719705044976,-547.03,0.00013808,3]
[330679330,1719705044986,-500.0,0.00013808,3]
[330679331,1719705044996,-500.0,0.00013808,3]
[330679332,1719705045006,-500.0,0.00013808,3]
[330679333,1719705045016,-500.0,0.00013808,3]
[330679334,1719705045026,-500.0,0.00013808,3]
[330679335,1719705045036,-517.29,0.00013808,3]
[330679336,1719705045046,-500.0,0.00013808,3]
[330679337,1719705045059,-500.0,0.00013808,3]
[330679338,1719705045070,-1000.98,0.00013808,3]
[330679339,1719705045080,-500.0,0.00013808,3]
[330679340,1719705045090,-500.0,0.00013808,3]
[330679341,1719705045100,-613.59,0.00013808,3]
[330679342,1719705045110,-597.67,0.00013808,3]
[330679343,1719705045119,-500.0,0.00013808,3]
[330679344,1719705045130,-165.99351762,0.00013808,3]
[330679345,1719705045140,-500.0,0.00013808,3]
[330679346,1719705045150,-500.0,0.00013808,3]
[330679347,1719705045160,-1315.28,0.00013808,3]
[330679348,1719705045170,-509.05,0.00013808,3]
[330679349,1719705045179,-500.0,0.00013808,3]
[330679350,1719705045190,-500.0,0.00013808,3]
[330679351,1719705045200,-500.0,0.00013808,3]
[330679352,1719705045210,-539.8,0.00013808,3]
[330679353,1719705045220,-500.0,0.00013808,3]
[330679354,1719705045230,-500.0,0.00013808,3]
[330679355,1719705045240,-500.0,0.00013808,3]
[330679356,1719705045250,-1347.65,0.00013808,3]
[330679357,1719705045260,-500.0,0.00013808,3]
[330679358,1719705045270,-500.0,0.00013808,3]
[330679359,1719705045281,-500.0,0.00013808,3]
[330679360,1719705045291,-500.0,0.00013808,3]
[330679361,1719705045301,-814.1,0.00013808,3]
[330679362,1719705045311,-500.0,0.00013808,3]
[330679363,1719705045320,-500.0,0.00013808,3]
[330679364,1719705045487,-696.36,0.00013808,3]
[330679365,1719705045497,-500.0,0.00013808,3]
[330679366,1719705045506,-500.0,0.00013808,3]
[330679367,1719705045516,-501.68,0.00013808,3]
[330679368,1719705045525,-500.0,0.00013808,3]
[330679369,1719705045534,-500.0,0.00013808,3]
[330679370,1719705045544,-573.89,0.00013808,3]
[330679371,1719705045553,-1013.02,0.00013808,3]
[330679372,1719705045562,-547.65,0.00013808,3]
[330679373,1719705045572,-500.0,0.00013808,3]
[330679374,1719705045582,-500.0,0.00013808,3]
[330679375,1719705045595,-529.84,0.00013808,3]
[330679376,1719705045605,-500.0,0.00013808,3]
[330679377,1719705045615,-500.0,0.00013808,3]
[330679378,1719705045624,-1005.03,0.00013808,3]
[330679379,1719705045634,-913.76,0.00013808,3]
[330679380,1719705045643,-500.0,0.00013808,3]
[330679381,1719705045653,-500.0,0.00013808,3]
[330679382,1719705045663,-500.0,0.00013808,3]
[330679383,1719705045672,-500.0,0.00013808,3]
[330679384,1719705045681,-542.65,0.00013808,3]
[330679385,1719705045691,-813.74,0.00013808,3]
[330679386,1719705045700,-500.0,0.00013808,3]
[330679387,1719705045710,-532.46437722,0.00013808,3]
[330679388,1719705045720,-517.14,0.00013808,3]
[330679389,1719705045729,-1193.04,0.00013808,3]
[330679390,1719705045740,-500.0,0.00013808,3]
[330679391,1719705045749,-500.0,0.00013808,3]
[330679392,1719705045759,-500.0,0.00013808,3]
[330679393,1719705045769,-500.0,0.00013808,3]
[330679394,1719705045778,-500.0,0.00013808,3]
[330679395,1719705045787,-500.0,0.00013808,3]
[330679396,1719705045797,-500.0,0.00013808,3]
[330679397,1719705045806,-500.0,0.00013808,3]
[330679398,1719705045815,-500.0,0.00013808,3]
[330679399,1719705045824,-515.54,0.00013808,3]
[330679400,1719705045834,-500.0,0.00013808,3]
[330679401,1719705045843,-500.0,0.00013808,3]
[330679402,1719705045852,-500.0,0.00013808,3]
[330679403,1719705045861,-165.1257166,0.00013808,3]
[330679404,1719705046355,-334.8742834,0.00013808,3]
[330679405,1719705046364,-664.07,0.00013808,3]
[330679406,1719705046374,-500.0,0.00013808,3]
[330679407,1719705046384,-774.34,0.00013808,3]
[330679408,1719705046393,-500.0,0.00013808,3]
[330679409,1719705046403,-500.0,0.00013808,3]
[330679410,1719705046412,-500.0,0.00013808,3]
[330679411,1719705046421,-517.71,0.00013808,3]
[330679412,1719705046431,-653.34,0.00013808,3]
[330679413,1719705046440,-500.0,0.00013808,3]
[330679414,1719705046449,-500.0,0.00013808,3]
[330679415,1719705046458,-500.0,0.00013808,3]
[330679416,1719705046467,-478.91577306,0.00013808,3]
[330679417,1719705046492,-51.40422694,0.00013808,3]
[330679418,1719705046501,-631.71,0.00013808,3]
[330679419,1719705046511,-31.54790506,0.00013808,3]
[330679420,1719705046534,-468.45209494,0.00013808,3]
[330679421,1719705046543,-500.0,0.00013808,3]
[330679422,1719705046553,-261.40050143,0.00013808,3]
[330679423,1719705046654,-500.0,0.00013698,3]
[330679424,1719705046663,-441.41949857,0.00013808,3]
[330679425,1719705046674,-500.0,0.00013808,3]
[330679426,1719705046683,-500.0,0.00013808,3]
[330679427,1719705046693,-269.09155327,0.00013808,3]
[330679428,1719705046705,-230.90844673,0.00013808,3]
[330679429,1719705046714,-101.59155327,0.00013808,3]
[330679430,1719705046730,-750.93844673,0.00013808,3]
[330679431,1719705046740,-500.0,0.00013808,3]
[330679432,1719705046750,-651.74,0.00013808,3]
[330679433,1719705046760,-540.54,0.00013808,3]
[330679434,1719705046769,-500.0,0.00013808,3]
[330679435,1719705046778,-500.0,0.00013808,3]
[330679436,1719705046788,-500.0,0.00013808,3]
[330679437,1719705046797,-500.0,0.00013808,3]
[330679438,1719705046806,-1163.23,0.00013808,3]
[330679439,1719705046815,-500.0,0.00013808,3]
[330679440,1719705046825,-888.31,0.00013808,3]
[330679441,1719705046835,-500.0,0.00013808,3]
[330679442,1719705046845,-500.0,0.00013808,3]
[330679443,1719705046854,-1260.7,0.00013808,3]
[330679444,1719705046864,-500.62,0.00013808,3]
[330679445,1719705046873,-500.0,0.00013808,3]
[330679446,1719705046882,-500.0,0.00013808,3]
[330679447,1719705046891,-720.21,0.00013808,3]
[330679448,1719705046900,-500.0,0.00013808,3]
[330679449,1719705046909,-500.0,0.00013808,3]
[330679450,1719705046919,-258.26245657,0.00013808,3]
[330679451,1719705046928,-500.0,0.00013808,3]
[330679452,1719705046937,-646.33,0.00013808,3]
[330679453,1719705046948,-1213.21,0.00013808,3]
[330679454,1719705046958,-500.0,0.00013808,3]
[330679455,1719705046967,-500.0,0.00013808,3]
[330679456,1719705046978,-500.0,0.00013808,3]
[330679457,1719705046987,-500.0,0.00013808,3]
[330679458,1719705046998,-784.07,0.00013808,3]
[330679459,1719705047007,-500.0,0.00013808,3]
[330679460,1719705047017,-1223.9,0.00013808,3]
[330679461,1719705047026,-781.68,0.00013808,3]
[330679462,1719705047036,-500.0,0.00013808,3]
[330679463,1719705047047,-500.0,0.00013808,3]
[330679464,1719705047063,-500.0,0.00013808,3]
[330679465,1719705047075,-862.2,0.00013808,3]
[330679466,1719705047084,-500.0,0.00013808,3]
[330679467,1719705047095,-748.35,0.00013808,3]
[330679468,1719705047106,-500.0,0.00013808,3]
[330679469,1719705047117,-500.0,0.00013808,3]
[330679470,1719705047127,-618.84,0.00013808,3]
[330679471,1719705047139,-500.0,0.00013808,3]
[330679472,1719705047150,-500.0,0.00013808,3]
[330679473,1719705047160,-891.36,0.00013808,3]
[330679474,1719705047172,-500.0,0.00013808,3]
[330679475,1719705047181,-500.0,0.00013808,3]
[330679476,1719705047192,-500.0,0.00013808,3]
[330679477,1719705047202,-855.22,0.00013808,3]
[330679478,1719705047211,-1092.88,0.00013808,3]
[330679479,1719705047220,-500.0,0.00013808,3]
[330679480,1719705047230,-500.0,0.00013808,3]
[330679481,1719705047239,-1321.22,0.00013808,3]
[330679482,1719705047248,-656.32,0.00013808,3]
[330679483,1719705047258,-1571.03,0.00013808,3]
[330679484,1719705047268,-500.0,0.00013808,3]
[330679485,1719705047277,-745.48,0.00013808,3]
[330679486,1719705047286,-500.0,0.00013808,3]
[330679487,1719705047296,-500.0,0.00013808,3]
[330679488,1719705047305,-697.74,0.00013808,3]
[330679489,1719705047314,-500.0,0.00013808,3]
[330679490,1719705047324,-780.94,0.00013808,3]
[330679491,1719705047333,-561.99,0.00013808,3]
[330679492,1719705047342,-1032.82,0.00013808,3]
[330679493,1719705047352,-500.0,0.00013808,3]
[330679494,1719705047361,-251.5676224,0.00013808,3]
[330679495,1719705047375,-248.4323776,0.00013808,3]
[330679496,1719705047385,-505.94,0.00013808,3]
[330679497,1719705047394,-508.67,0.00013808,3]
[330679498,1719705047403,-500.0,0.00013808,3]
[330679499,1719705047413,-681.36,0.00013808,3]
[330679500,1719705047422,-500.0,0.00013808,3]
[330679501,1719705047431,-500.0,0.00013808,3]
[330679502,1719705047441,-669.08,0.00013808,3]
[330679503,1719705047450,-678.34,0.00013808,3]
[330679504,1719705047460,-500.0,0.00013808,3]
[330679505,1719705047469,-1248.34,0.00013808,3]
[330679506,1719705047478,-500.0,0.00013808,3]
[330679507,1719705047487,-536.66,0.00013808,3]
[330679508,1719705047497,-500.0,0.00013808,3]
[330679509,1719705047506,-500.0,0.00013808,3]
[330679510,1719705047515,-522.56,0.00013808,3]
[330679511,1719705047524,-500.0,0.00013808,3]
[330679512,1719705047533,-735.16,0.00013808,3]
[330679513,1719705047542,-681.59,0.00013808,3]
[330679514,1719705047552,-500.0,0.00013808,3]
[330679515,1719705047561,-506.25,0.00013808,3]
[330679516,1719705047570,-718.72,0.00013808,3]
[330679517,1719705047580,-629.52,0.00013808,3]
[330679518,1719705047590,-354.70879933,0.00013808,3]
[330679519,1719705047602,-332.26120067,0.00013808,3]
[330679520,1719705047611,-66.38707951,0.00013808,3]
[330679521,1719705047938,-3259.38,0.00013698,3]
[330679522,1719705047948,-771.53,0.00013698,3]
[330679523,1719705047958,-433.61292049,0.00013808,3]
[330679524,1719705047967,-685.01,0.00013808,3]
[330679525,1719705047976,-500.0,0.00013808,3]
[330679526,1719705047985,-1573.96,0.00013808,3]
[330679527,1719705047994,-1064.51,0.00013808,3]
[330679528,1719705048003,-543.79,0.00013808,3]
[330679529,1719705048013,-2155.36,0.00013808,3]
[330679530,1719705048022,-511.27,0.00013808,3]
[330679531,1719705048031,-350.59310776,0.00013808,3]
[330679532,1719705048040,-510.4,0.00013808,3]
[330679533,1719705048049,-500.0,0.00013808,3]
[330679534,1719705048058,-500.0,0.00013808,3]
[330679535,1719705048072,-2041.61,0.00013808,3]
[330679536,1719705048081,-500.0,0.00013808,3]
[330679537,1719705048090,-587.95,0.00013808,3]
[330679538,1719705048099,-505.95,0.00013808,3]
[330679539,1719705048109,-500.0,0.00013808,3]
[330679540,1719705048118,-546.14,0.00013808,3]
[330679541,1719705048128,-500.0,0.00013808,3]
[330679542,1719705048140,-416.23718606,0.00013808,3]
[330679543,1719705048151,-302.75281394,0.00013808,3]
[330679544,1719705048161,-500.0,0.00013808,3]
[330679545,1719705048170,-47.49665054,0.00013808,3]
[330679546,1719705048181,-1359.72334946,0.00013808,3]
[330679547,1719705048192,-1087.14,0.00013808,3]
[330679548,1719705048201,-5450.43,0.00013808,3]
[330679549,1719705048211,-2175.47,0.00013808,3]
[330679550,1719705048220,-1204.67,0.00013808,3]
[330679551,1719705048229,-788.92,0.00013808,3]
[330679552,1719705048239,-867.95,0.00013808,3]
[330679553,1719705048248,-606.58,0.00013808,3]
[330679554,1719705048257,-1018.1,0.00013808,3]
[330679555,1719705048267,-500.0,0.00013808,3]
[330679556,1719705048276,-864.97,0.00013808,3]
[330679557,1719705048285,-169.05811554,0.00013808,3]
[330679558,1719705048308,-330.94188446,0.00013808,3]
[330679559,1719705048318,-500.0,0.00013808,3]
[330679560,1719705048327,-548.17,0.00013808,3]
[330679561,1719705048336,-500.0,0.00013808,3]
[330679562,1719705048346,-500.0,0.00013808,3]
[330679563,1719705048355,-706.28,0.00013808,3]
[330679564,1719705048364,-353.25503934,0.00013808,3]
[330679565,1719705048376,-146.74496066,0.00013808,3]
[330679566,1719705048386,-951.3,0.00013808,3]
[330679567,1719705048395,-309.98124888,0.00013808,3]
[330679568,1719705048407,-190.01875112,0.00013808,3]
[330679569,1719705048416,-332.79024888,0.00013808,3]
[330679570,1719705048427,-167.20975112,0.00013808,3]
[330679571,1719705048437,-400.9210555,0.00013808,3]
[330679572,1719705048449,-366.45804821,0.00013808,3]
[330679573,1719705048466,-407.13089629,0.00013808,3]
[330679574,1719705048475,-500.0,0.00013808,3]
[330679575,1719705048485,-346.70189222,0.00013808,3]
[330679576,1719705048534,-153.29810778,0.00013808,3]
[330679577,1719705048544,-125.6033745,0.00013808,3]
[330679578,1719705048556,-380.43487415,0.00013808,3]